fUST/lending_fUST_20240719
["ID","MTS","AMOUNT","RATE_DAILY","PERIOD"]
[332624249,1721371847044,-500.0,0.00019178,2]
[332624250,1721371847054,-500.0,0.00019178,2]
[332624251,1721371847064,-1178.06,0.00019178,2]
[332624252,1721371847073,-500.0,0.00019178,2]
[332624253,1721371847082,-500.0,0.00019178,2]
[332624254,1721371847092,-1665.95,0.00019178,2]
[332624255,1721371847101,-500.0,0.00019178,2]
[332624256,1721371847111,-500.0,0.00019178,2]
[332624257,1721371847122,-500.0,0.00019178,2]
[332624258,1721371847132,-500.0,0.00019178,2]
[332624259,1721371847141,-500.0,0.00019178,2]
[332624260,1721371847151,-500.0,0.00019178,2]
[332624261,1721371847160,-500.0,0.00019178,2]
[332624262,1721371847169,-500.0,0.00019178,2]
[332624263,1721371847179,-500.0,0.00019178,2]
[332624264,1721371847189,-500.0,0.00019178,2]
[332624265,1721371847199,-502.56026795,0.00019178,2]
[332624266,1721371847208,-151.0,0.00019178,2]
[332624267,1721371847217,-151.0,0.00019178,2]
[332624268,1721371847226,-283.846103,0.00019178,2]
[332624269,1721371847235,-503.00486776,0.00019178,2]
[332624270,1721371847244,-500.0,0.00019178,2]
[332624271,1721371847254,-301.54932985,0.00019178,2]
[332624272,1721371847264,-500.0,0.00019178,2]
[332624273,1721371847274,-502.30472754,0.00019178,2]
[332624274,1721371847284,-305.333511,0.00019178,2]
[332624275,1721371847296,-305.333511,0.00019178,2]
[332624276,1721371847306,-305.333511,0.00019178,2]
[332624277,1721371847316,-305.333511,0.00019178,2]
[332624278,1721371847325,-305.333511,0.00019178,2]
[332624279,1721371847336,-500.0,0.00019178,2]
[332624280,1721371847346,-500.0,0.00019178,2]
[332624281,1721371847355,-305.333511,0.00019178,2]
[332624282,1721371847511,-305.333511,0.00019178,2]
[332624283,1721371847521,-305.333511,0.00019178,2]
[332624284,1721371847530,-506.97110985,0.00019178,2]
[332624285,1721371847540,-305.333511,0.00019178,2]
[332624286,1721371847549,-305.333511,0.00019178,2]
[332624287,1721371847559,-305.333511,0.00019178,2]
[332624288,1721371847568,-305.333511,0.00019178,2]
[332624289,1721371847578,-501.97440306,0.00019178,2]
[332624290,1721371847587,-500.0,0.00019178,2]
[332624291,1721371847597,-305.333511,0.00019178,2]
[332624292,1721371847606,-505.27825479,0.00019178,2]
[332624293,1721371847617,-305.333506,0.00019178,2]
[332624294,1721371847626,-500.0,0.00019178,2]
[332624295,1721371847635,-4369.23,0.00019178,2]
[332624296,1721371847644,-500.0,0.00019178,2]
[332624297,1721371847654,-512.94837636,0.00019178,2]
[332624298,1721371847664,-502.61776133,0.00019178,2]
[332624299,1721371847674,-2163.63,0.00019178,2]
[332624300,1721371847684,-500.0,0.00019178,2]
[332624301,1721371847693,-500.0,0.00019178,2]
[332624302,1721371847703,-504.97797797,0.00019178,2]
[332624303,1721371847712,-502.87005819,0.00019178,2]
[332624304,1721371847722,-500.0,0.00019178,2]
[332624305,1721371847731,-500.0,0.00019178,2]
[332624306,1721371847741,-500.0,0.00019178,2]
[332624307,1721371847750,-500.0,0.00019178,2]
[332624308,1721371847760,-1077.27,0.00019178,2]
[332624309,1721371847770,-501.3127213,0.00019178,2]
[332624310,1721371847780,-500.0,0.00019178,2]
[332624311,1721371847789,-508.77,0.00019178,2]
[332624312,1721371847799,-836.68,0.00019178,2]
[332624313,1721371847808,-500.0,0.00019178,2]
[332624314,1721371847818,-500.0,0.00019178,2]
[332624315,1721371847828,-500.0,0.00019178,2]
[332624316,1721371847837,-2157.05,0.00019178,2]
[332624317,1721371847848,-500.0,0.00019178,2]
[332624318,1721371847858,-500.0,0.00019178,2]
[332624319,1721371847869,-502.95326435,0.00019178,2]
[332624320,1721371847878,-500.0,0.00019178,2]
[332624321,1721371847888,-500.0,0.00019178,2]
[332624322,1721371847897,-508.57749221,0.00019178,2]
[332624323,1721371847906,-500.0,0.00019178,2]
[332624324,1721371847916,-500.0,0.00019178,2]
[332624325,1721371847925,-500.0,0.00019178,2]
[332624326,1721371847935,-500.0,0.00019178,2]
[332624327,1721371847944,-500.0,0.00019178,2]
[332624328,1721371847953,-500.0,0.00019178,2]
[332624329,1721371847963,-1103.66,0.00019178,2]
[332624330,1721371847973,-471.67904458,0.00019178,2]
[332624331,1721371847982,-500.0,0.00019178,2]
[332624332,1721371847993,-500.0,0.00019178,2]
[332624333,1721371848002,-500.0,0.00019178,2]
[332624334,1721371848012,-500.0,0.00019178,2]
[332624335,1721371848021,-500.0,0.00019178,2]
[332624336,1721371848031,-575.59,0.00019178,2]
[332624337,1721371848040,-606.30003501,0.00019178,2]
[332624338,1721371848050,-839.84,0.00019178,2]
[332624339,1721371848059,-1929.12,0.00019178,2]
[332624340,1721371848069,-151.0,0.00019178,2]
[332624341,1721371848079,-151.0,0.00019178,2]
[332624342,1721371848089,-151.0,0.00019178,2]
[332624343,1721371848099,-151.0,0.00019178,2]
[332624344,1721371848108,-500.0,0.00019178,2]
[332624345,1721371848118,-151.0,0.00019178,2]
[332624346,1721371848128,-151.0,0.00019178,2]
[332624347,1721371848137,-151.0,0.00019178,2]
[332624348,1721371848147,-500.0,0.00019178,2]
[332624349,1721371848156,-500.0,0.00019178,2]
[332624350,1721371848165,-500.0,0.00019178,2]
[332624351,1721371848175,-2227.97,0.00019178,2]
[332624352,1721371848184,-501.76180974,0.00019178,2]
[332624353,1721371848193,-500.0,0.00019178,2]
[332624354,1721371848202,-502.82423385,0.00019178,2]
[332624355,1721371848212,-1013.44,0.00019178,2]
[332624356,1721371848222,-2329.69,0.00019178,2]
[332624357,1721371848232,-11916.09,0.00019178,2]
[332624358,1721371848241,-1086.77,0.00019178,2]
[332624359,1721371848251,-508.2629639,0.00019178,2]
[332624360,1721371848261,-3400.01,0.00019178,2]
[332624361,1721371848272,-503.7113137,0.00019178,2]
[332624362,1721371848282,-4304.91,0.00019178,2]
[332624363,1721371848292,-500.0,0.00019178,2]
[332624364,1721371848305,-501.33552805,0.00019178,2]
[332624365,1721371848315,-500.0,0.00019178,2]
[332624366,1721371848325,-500.0,0.00019178,2]
[332624367,1721371848336,-500.0,0.00019178,2]
[332624368,1721371848347,-512.74,0.00019178,2]
[332624369,1721371848357,-8855.89,0.00019178,2]
[332624370,1721371848366,-689.26,0.00019178,2]
[332624371,1721371848376,-668.75,0.00019178,2]
[332624372,1721371848388,-2036.41,0.00019178,2]
[332624373,1721371848397,-500.0,0.00019178,2]
[332624374,1721371848407,-757.25,0.00019178,2]
[332624375,1721371848417,-831.75906732,0.00019178,2]
[332624385,1721372250561,518.8113678,9.999e-05,2]
[332624386,1721372253736,166.666666,0.00014795,2]
[332624387,1721372280580,518.8113678,9.999e-05,2]
[332624388,1721372365881,213.634339,0.0001479,2]
[332624389,1721372419614,521.17738443,0.0001212,2]
[332624390,1721372440757,179.792128,0.00014707,2]
[332624391,1721372440965,179.792128,0.0001486,2]
[332624393,1721372782858,294.79877556,0.00015,4]
[332624395,1721372834414,24900.0,0.00014518,2]
[332624396,1721372860254,166.666666,0.00014795,2]
[332624397,1721372908390,327.4394965,0.00014624,2]
[332624398,1721372917068,-179.792128,0.00015014,2]
[332624399,1721372917098,-292.5161204,0.0001516,2]
[332624401,1721372917129,-179.792128,0.00015167,2]
[332624402,1721372917160,-179.792128,0.0001532,2]
[332624403,1721372917190,-104.50306764,0.00015474,2]
[332624404,1721372917224,-75.28906036,0.00015474,2]
[332624405,1721372917254,-300.0,0.00015689,2]
[332624406,1721372917285,-300.0,0.00015689,2]
[332624407,1721372917313,-206.44449224,0.0001569,2]
[332624408,1721372917343,-54.66201944,0.0001569,2]
[332624409,1721372917381,-517.36961111,0.0001569,2]
[332624410,1721372942057,-984.19878714,0.00015608,2]
[332624411,1721372942101,-787.73570059,0.00015608,2]
[332624412,1721372967427,-1019.63747689,0.0001569,2]
[332624413,1721372967485,-954.46396364,0.0001569,2]
[332624414,1721372992114,-1059.11950571,0.0001569,2]
[332624415,1721372992169,-939.84660146,0.0001569,2]
[332624487,1721373032326,-300.0,0.00015589,2]
[332624488,1721373032336,-10380.48898506,0.0001559,2]
[332624489,1721373032346,-3630.40216263,0.0001569,2]
[332624490,1721373032355,-300.0,0.00015707,2]
[332624491,1721373032366,-2029.98,0.00015708,14]
[332624493,1721373032375,-2029.98,0.00015708,14]
[332624494,1721373032385,-744.81339146,0.00015708,14]
[332624559,1721373038142,-1285.16660854,0.00015708,14]
[332624561,1721373038152,-2029.98,0.00015708,14]
[332624563,1721373038162,-2029.98,0.00015708,14]
[332624565,1721373038173,-2029.98,0.00015708,14]
[332624567,1721373038182,-2029.98,0.00015708,14]
[332624569,1721373038193,-2029.98,0.00015708,14]
[332624571,1721373038204,-2029.98,0.00015708,14]
[332624573,1721373038214,-2029.98,0.00015708,14]
[332624575,1721373038224,-2029.98,0.00015708,14]
[332624577,1721373038234,-2029.98,0.00015708,14]
[332624579,1721373038244,-2029.98,0.00015708,14]
[332624581,1721373038254,-2029.98,0.00015708,14]
[332624583,1721373038264,-2029.98,0.00015708,14]
[332624585,1721373038274,-2029.98,0.00015708,14]
[332624587,1721373038284,-2029.98,0.00015708,14]
[332624589,1721373038294,-2029.98,0.00015708,14]
[332624591,1721373038303,-2029.98,0.00015708,14]
[332624593,1721373038313,-2029.98,0.00015708,14]
[332624596,1721373038325,-2029.98,0.00015708,14]
[332624599,1721373038335,-2029.98,0.00015708,14]
[332624602,1721373038345,-2029.98,0.00015708,14]
[332624604,1721373038354,-2030.09969239,0.00015708,14]
[332624606,1721373038363,-4452.847589,0.00016,2]
[332624608,1721373038373,-521.17738443,0.00016095,2]
[332624610,1721373038383,-2213.0532778,0.00016159,2]
[332624611,1721373038393,-8175.50134087,0.00016243,2]
[332624612,1721373038403,-160.256367,0.00016438,2]
[332624613,1721373038413,-1771.93448772,0.00016769,2]
[332624614,1721373038423,-8175.50134087,0.00016795,2]
[332624615,1721373038432,-240.0,0.00017051,2]
[332624616,1721373038442,-160.256367,0.00017079,2]
[332624617,1721373038452,-334.99223951,0.00017262,2]
[332624618,1721373038462,-420.0,0.00017278,2]
[332624619,1721373038471,-549.60859247,0.00017335,2]
[332624620,1721373038481,-202.05238764,0.00017335,2]
[332624621,1721373038490,-500.0,0.00017335,2]
[332624622,1721373038500,-134265.923055,0.00017337,2]
[332624623,1721373038510,-8175.50134087,0.00017348,2]
[332624624,1721373038519,-666.5287126,0.00017379,2]
[332624625,1721373038529,-1106.21382768,0.00017379,2]
[332624626,1721373038538,-257.46948743,0.00017379,2]
[332624627,1721373038549,-2859.30517357,0.00017379,2]
[332624628,1721373038558,-156.04944948,0.00017389,2]
[332624629,1721373038570,-288.5883714,0.00017397,2]
[332624630,1721373038580,-726.4559758,0.00017403,2]
[332624632,1721373038589,-534.16189538,0.00017403,2]
[332624634,1721373038599,-155.35591859,0.00017403,2]
[332624636,1721373038608,-154.9192016,0.00017555,2]
[332624638,1721373038618,-161.70749677,0.00017555,2]
[332624640,1721373038627,-402.73067489,0.00017555,2]
[332624642,1721373038637,-164.15315009,0.00017555,2]
[332624644,1721373038646,-248.68489287,0.00017555,2]
[332624645,1721373038656,-2000.0,0.00017657,2]
[332624647,1721373038666,-160.256367,0.00017721,2]
[332624649,1721373038677,-232.36332638,0.00017746,2]
[332624651,1721373038689,-500.0,0.00017746,2]
[332624653,1721373038700,-500.0,0.00017746,2]
[332624655,1721373038709,-500.0,0.00017746,2]
[332624657,1721373038719,-500.0,0.00017746,2]
[332624659,1721373038731,-500.0,0.00017746,2]
[332624661,1721373038741,-500.0,0.00017746,2]
[332624663,1721373038753,-500.0,0.00017746,2]
[332624665,1721373038765,-500.0,0.00017746,2]
[332624667,1721373038775,-420.18850129,0.00017746,2]
[332624669,1721373038792,-500.0,0.00017746,2]
[332624671,1721373038803,-500.0,0.00017746,2]
[332624673,1721373038829,-500.0,0.00017746,2]
[332624675,1721373038850,-500.0,0.00017746,2]
[332624677,1721373038864,-500.0,0.00017746,2]
[332624680,1721373038878,-500.0,0.00017746,2]
[332624682,1721373038888,-623.90765025,0.00017746,2]
[332624684,1721373038908,-500.0,0.00017746,2]
[332624686,1721373038918,-500.0,0.00017746,2]
[332624688,1721373038945,-277.16686175,0.00017746,2]
[332624690,1721373038960,-500.0,0.00017746,2]
[332624692,1721373038978,-500.0,0.00017746,2]
[332624694,1721373038991,-500.0,0.00017746,2]
[332624696,1721373039001,-322.76518086,0.00017746,2]
[332624698,1721373039011,-500.0,0.00017746,2]
[332624700,1721373039021,-500.0,0.00017746,2]
[332624702,1721373039031,-500.0,0.00017746,2]
[332624705,1721373039042,-500.0,0.00017746,2]
[332624707,1721373039053,-500.0,0.00017746,2]
[332624709,1721373039064,-500.0,0.00017746,2]
[332624711,1721373039075,-500.0,0.00017746,2]
[332624713,1721373039084,-500.0,0.00017746,2]
[332624715,1721373039094,-500.0,0.00017746,2]
[332624717,1721373039103,-457.57586636,0.00017746,2]
[332624719,1721373039113,-581.58663149,0.00017746,2]
[332624721,1721373039124,-500.0,0.00017746,2]
[332624723,1721373039133,-500.0,0.00017746,2]
[332624725,1721373039143,-200.0,0.00017746,2]
[332624727,1721373039153,-867.84803696,0.00017746,2]
[332624729,1721373039162,-867.84803696,0.00017746,2]
[332624731,1721373039172,-867.84803696,0.00017746,2]
[332624733,1721373039182,-867.84803696,0.00017746,2]
[332624735,1721373039193,-867.84803696,0.00017746,2]
[332624737,1721373039203,-867.84803696,0.00017746,2]
[332624739,1721373039213,-867.84803696,0.00017746,2]
[332624740,1721373039222,-867.84803696,0.00017746,2]
[332624741,1721373039232,-867.84803696,0.00017746,2]
[332624742,1721373039242,-867.84803696,0.00017746,2]
[332624743,1721373039252,-836.20774395,0.00017746,2]
[332624744,1721373039263,-836.20774395,0.00017746,2]
[332624746,1721373039273,-836.20774395,0.00017746,2]
[332624748,1721373039282,-268531.84611,0.00017747,2]
[332624749,1721373039292,-88888.0,0.00017757,2]
[332624751,1721373039302,-334.99223951,0.00017778,2]
[332624752,1721373039312,-1408.0,0.000178,2]
[332624753,1721373039328,-153.0,0.00017808,2]
[332624755,1721373039340,-220.1802024,0.00017808,2]
[332624756,1721373039350,-293.756678,0.00017808,2]
[332624757,1721373039359,-474.35018564,0.0001784,2]
[332624759,1721373039369,-334.99223951,0.00017872,2]
[332624761,1721373039379,-8175.50134087,0.000179,2]
[332624762,1721373039391,-1771.93448772,0.0001793,2]
[332624763,1721373039401,-134265.923055,0.00017937,2]
[332624764,1721373039412,-155.924414,0.0001799,2]
[332624765,1721373039422,-151.0,0.0001799,2]
[332624766,1721373039431,-151.0,0.0001799,2]
[332624768,1721373039441,-438.934173,0.0001799,2]
[332624769,1721373039450,-438.934173,0.0001799,2]
[332624770,1721373039460,-151.0,0.0001799,2]
[332624771,1721373039469,-100000.0,0.00018,2]
[332624772,1721373039479,-4953.84625735,0.00018046,2]
[332624774,1721373039488,-4953.84625735,0.00018144,2]
[332624775,1721373039498,-150.0,0.00018149,2]
[332624776,1721373039507,-266.074,0.00018149,2]
[332624777,1721373039516,-334.99223951,0.00018176,2]
[332624778,1721373039526,-707.00523788,0.00018337,2]
[332624779,1721373039535,-153.0,0.00018356,2]
[332624780,1721373039544,-153.0,0.00018356,2]
[332624781,1721373039554,-153.0,0.00018356,2]
[332624782,1721373039563,-153.0,0.00018356,2]
[332624783,1721373039575,-153.0,0.00018356,2]
[332624784,1721373039585,-153.0,0.00018356,2]
[332624785,1721373039594,-153.0,0.00018356,2]
[332624786,1721373039604,-153.0,0.00018356,2]
[332624788,1721373039614,-153.0,0.00018356,2]
[332624789,1721373039624,-153.0,0.00018356,2]
[332624790,1721373039634,-153.0,0.00018356,2]
[332624791,1721373039644,-153.0,0.00018356,2]
[332624792,1721373039654,-160.256367,0.00018362,2]
[332624793,1721373039664,-4953.84625735,0.00018388,2]
[332624794,1721373039679,-334.99223951,0.00018449,2]
[332624795,1721373039692,-563.8269838,0.00018492,2]
[332624796,1721373039702,-748.1,0.00018597,2]
[332624797,1721373039713,-918.0,0.000186,2]
[332624798,1721373039724,-540.9557158,0.0001863,2]
[332624799,1721373039734,-153.0,0.0001863,2]
[332624800,1721373039743,-153.0,0.0001863,2]
[332624801,1721373039754,-153.0,0.0001863,2]
[332624802,1721373039765,-153.0,0.0001863,2]
[332624803,1721373039775,-153.0,0.0001863,2]
[332624804,1721373039786,-153.0,0.0001863,2]
[332624805,1721373039795,-153.0,0.0001863,2]
[332624806,1721373039805,-153.0,0.0001863,2]
[332624807,1721373039815,-153.0,0.0001863,2]
[332624808,1721373039827,-154.9174522,0.0001863,2]
[332624809,1721373039837,-306.8309251,0.0001863,2]
[332624810,1721373039846,-289.18175283,0.00018642,2]
[332624811,1721373039858,-334.99223951,0.00018679,2]
[332624812,1721373039868,-4953.84625735,0.00018885,2]
[332624813,1721373039878,-1000.0,0.00018898,2]
[332624814,1721373039887,-748.1,0.00018899,2]
[332624815,1721373039897,-172.56150363,0.00018899,2]
[332624816,1721373039907,-153.077561,0.000189,2]
[332624817,1721373039917,-151.0,0.000189,2]
[332624818,1721373039926,-151.0,0.000189,2]
[332624819,1721373039936,-151.0,0.000189,2]
[332624820,1721373039946,-151.0,0.000189,2]
[332624821,1721373039956,-4284.58398646,0.000189,2]
[332624822,1721373039966,-154.201596,0.000189,2]
[332624823,1721373039976,-154.201596,0.000189,2]
[332624824,1721373039986,-151.0,0.000189,2]
[332624825,1721373039995,-151.0,0.000189,2]
[332624826,1721373040005,-438.934173,0.000189,2]
[332624827,1721373040016,-438.934173,0.000189,2]
[332624828,1721373040025,-151.0,0.000189,2]
[332624829,1721373040035,-238.347466,0.000189,2]
[332624830,1721373040046,-238.347466,0.000189,2]
[332624831,1721373040056,-151.0,0.000189,2]
[332624832,1721373040069,-151.0,0.000189,2]
[332624833,1721373040080,-275.317317,0.000189,2]
[332624834,1721373040091,-275.317317,0.000189,2]
[332624835,1721373040100,-151.0,0.000189,2]
[332624836,1721373040110,-151.0,0.000189,2]
[332624837,1721373040127,-189.446101,0.000189,2]
[332624838,1721373040137,-151.0,0.000189,2]
[332624840,1721373040147,-189.446101,0.000189,2]
[332624842,1721373040156,-293.756678,0.00018904,2]
[332624844,1721373040166,-293.756678,0.00018904,2]
[332624845,1721373040177,-293.756678,0.00018904,2]
[332624846,1721373040187,-152.008234,0.00018915,2]
[332624847,1721373040197,-167.73813035,0.00018918,2]
[332624848,1721373040208,-525.73842429,0.00018918,2]
[332624849,1721373040219,-34990.6027304,0.00018921,2]
[332624850,1721373040229,-1006.58860763,0.00018937,2]
[332624851,1721373040239,-154.79103211,0.00018945,2]
[332624852,1721373040249,-841.4834193,0.00018986,2]
[332624853,1721373040259,-151.0,0.00018986,2]
[332624854,1721373040269,-587.0,0.00019005,2]
[332624856,1721373040279,-151.817836,0.00019041,2]
[332624858,1721373040289,-250.0,0.00019041,2]
[332624859,1721373040300,-334.99223951,0.00019069,2]
[332624860,1721373040310,-1771.93448772,0.00019091,2]
[332624861,1721373040323,-6995.74191931,0.00019102,2]
[332624862,1721373040333,-494.80272899,0.00019139,2]
[332624863,1721373040342,-332.11512548,0.00019147,2]
[332624864,1721373040351,-306.71268431,0.00019155,2]
[332624865,1721373040361,-4953.84625736,0.00019165,2]
[332624866,1721373040370,-156.05781053,0.00019167,2]
[332624867,1721373040379,-500.0,0.00019178,2]
[332624868,1721373040396,-500.0,0.00019178,2]
[332624869,1721373040408,-500.0,0.00019178,2]
[332624870,1721373040418,-313.00457431,0.00019178,2]
[332624871,1721373040428,-514.78540997,0.00019178,2]
[332624872,1721373040438,-500.0,0.00019178,2]
[332624873,1721373040447,-500.0,0.00019178,2]
[332624874,1721373040457,-500.0,0.00019178,2]
[332624875,1721373040466,-500.0,0.00019178,2]
[332624876,1721373040476,-500.0,0.00019178,2]
[332624877,1721373040487,-500.0,0.00019178,2]
[332624878,1721373040496,-506.89742752,0.00019178,2]
[332624879,1721373040506,-500.0,0.00019178,2]
[332624880,1721373040516,-500.0,0.00019178,2]
[332624881,1721373040526,-500.0,0.00019178,2]
[332624882,1721373040535,-500.0,0.00019178,2]
[332624883,1721373040545,-154.997899,0.00019178,2]
[332624884,1721373040555,-500.0,0.00019178,2]
[332624885,1721373040564,-530.13847867,0.00019178,2]
[332624886,1721373040576,-393.23778533,0.00019178,2]
[332624887,1721373040586,-647.98,0.00019178,2]
[332624888,1721373040595,-500.0,0.00019178,2]
[332624889,1721373040605,-1421.15,0.00019178,2]
[332624890,1721373040615,-500.0,0.00019178,2]
[332624891,1721373040624,-500.0,0.00019178,2]
[332624892,1721373040634,-655.47,0.00019178,2]
[332624893,1721373040643,-500.0,0.00019178,2]
[332624894,1721373040653,-500.0,0.00019178,2]
[332624895,1721373040663,-500.0,0.00019178,2]
[332624896,1721373040673,-500.0,0.00019178,2]
[332624897,1721373040685,-500.0,0.00019178,2]
[332624898,1721373040694,-500.0,0.00019178,2]
[332624899,1721373040704,-151.0,0.00019178,2]
[332624900,1721373040713,-151.0,0.00019178,2]
[332624901,1721373040724,-151.0,0.00019178,2]
[332624902,1721373040734,-500.0,0.00019178,2]
[332624903,1721373040743,-151.0,0.00019178,2]
[332624904,1721373040753,-151.0,0.00019178,2]
[332624905,1721373040764,-502.48328605,0.00019178,2]
[332624906,1721373040774,-151.0,0.00019178,2]
[332624907,1721373040783,-151.0,0.00019178,2]
[332624908,1721373040792,-151.0,0.00019178,2]
[332624909,1721373040802,-264.35495113,0.00019178,2]
[332624910,1721373040812,-500.0,0.00019178,2]
[332624911,1721373040823,-500.0,0.00019178,2]
[332624912,1721373040832,-906.4,0.00019178,2]
[332624913,1721373040842,-500.0,0.00019178,2]
[332624914,1721373040852,-151.621417,0.00019178,2]
[332624915,1721373040862,-1716.12,0.00019178,2]
[332624916,1721373041104,-500.0,0.00019178,2]
[332624917,1721373041115,-151.0,0.00019178,2]
[332624918,1721373041125,-764.59,0.00019178,2]
[332624919,1721373041135,-500.0,0.00019178,2]
[332624920,1721373041145,-500.0,0.00019178,2]
[332624921,1721373041154,-1998.45,0.00019178,2]
[332624922,1721373041166,-500.0,0.00019178,2]
[332624923,1721373041176,-500.0,0.00019178,2]
[332624924,1721373041186,-500.0,0.00019178,2]
[332624925,1721373041196,-500.0,0.00019178,2]
[332624926,1721373041207,-422.58441942,0.00019178,2]
[332624927,1721373041217,-618.50441919,0.00019178,2]
[332624928,1721373041228,-500.0,0.00019178,2]
[332624929,1721373041238,-501.70638052,0.00019178,2]
[332624930,1721373041248,-602.61,0.00019178,2]
[332624931,1721373041258,-500.0,0.00019178,2]
[332624932,1721373041267,-500.0,0.00019178,2]
[332624933,1721373041277,-500.0,0.00019178,2]
[332624934,1721373041287,-500.0,0.00019178,2]
[332624935,1721373041297,-500.0,0.00019178,2]
[332624936,1721373041307,-500.0,0.00019178,2]
[332624937,1721373041317,-500.0,0.00019178,2]
[332624938,1721373041331,-502.78378867,0.00019178,2]
[332624939,1721373041341,-500.0,0.00019178,2]
[332624940,1721373041350,-360.00000002,0.00019178,2]
[332624941,1721373041361,-500.0,0.00019178,2]
[332624942,1721373041371,-1128.98,0.00019178,2]
[332624943,1721373041381,-501.07300065,0.00019178,2]
[332624944,1721373041391,-500.0,0.00019178,2]
[332624945,1721373041402,-500.0,0.00019178,2]
[332624946,1721373041412,-366.86046767,0.00019178,2]
[332624947,1721373041422,-503.58189081,0.00019178,2]
[332624948,1721373041432,-500.0,0.00019178,2]
[332624949,1721373041445,-500.0,0.00019178,2]
[332624950,1721373041455,-500.0,0.00019178,2]
[332624951,1721373041466,-500.0,0.00019178,2]
[332624952,1721373041476,-500.0,0.00019178,2]
[332624953,1721373041485,-500.0,0.00019178,2]
[332624954,1721373041495,-590.28328048,0.00019178,2]
[332624955,1721373041505,-385.86644807,0.00019178,2]
[332624956,1721373041515,-500.0,0.00019178,2]
[332624957,1721373041524,-500.0,0.00019178,2]
[332624958,1721373041534,-500.0,0.00019178,2]
[332624959,1721373041544,-500.0,0.00019178,2]
[332624960,1721373041553,-2232.62,0.00019178,2]
[332624961,1721373041563,-500.0,0.00019178,2]
[332624962,1721373041576,-541.25567237,0.00019178,2]
[332624963,1721373041586,-500.0,0.00019178,2]
[332624964,1721373041596,-383.64464745,0.00019178,2]
[332624965,1721373041606,-500.0,0.00019178,2]
[332624966,1721373041616,-500.0,0.00019178,2]
[332624967,1721373041625,-1057.67,0.00019178,2]
[332624968,1721373041636,-814.7,0.00019178,2]
[332624969,1721373041646,-1437.06,0.00019178,2]
[332624970,1721373041656,-500.0,0.00019178,2]
[332624971,1721373041666,-2494.77,0.00019178,2]
[332624972,1721373041677,-717.85,0.00019178,2]
[332624973,1721373041692,-600.79613272,0.00019178,2]
[332624974,1721373041702,-500.0,0.00019178,2]
[332624975,1721373041712,-385.53031961,0.00019178,2]
[332624976,1721373041722,-500.0,0.00019178,2]
[332624977,1721373041732,-562.56,0.00019178,2]
[332624978,1721373041742,-1300.11,0.00019178,2]
[332624979,1721373041752,-500.0,0.00019178,2]
[332624980,1721373041763,-500.0,0.00019178,2]
[332624981,1721373041773,-500.0,0.00019178,2]
[332624982,1721373041782,-500.0,0.00019178,2]
[332624983,1721373041792,-500.0,0.00019178,2]
[332624984,1721373041801,-500.0,0.00019178,2]
[332624985,1721373041811,-500.0,0.00019178,2]
[332624986,1721373041824,-500.0,0.00019178,2]
[332624987,1721373041834,-500.0,0.00019178,2]
[332624988,1721373041844,-500.0,0.00019178,2]
[332624989,1721373041853,-500.0,0.00019178,2]
[332624990,1721373041863,-500.0,0.00019178,2]
[332624991,1721373041872,-500.0,0.00019178,2]
[332624992,1721373041882,-500.0,0.00019178,2]